Cogmind - Beta 12 --- EXPLORER MODE // 2023.12.07 @ 23:06:24 Player: Analote Result: Self-destructed Performance ------------- Evolutions (9) 4500 Regions Visited (20) 4000 Robots Destroyed (410) 2050 Value Destroyed (21557) 21557 Prototype IDs (36) 720 Alien Tech Used (5) 1000 Bonus (7100) 7100 TOTAL SCORE: 40927 Bonus ------- High Alert Combat Kills 3196 Follower Combat Kills 1094 Met Zhirov 300 A7 Reached Mainframe 300 Scanned by Researcher 500 Met Sigix 2000 Friendly Fire -290 Cogmind --------- Core Integrity 577/1600 Matter 700/700 Energy 150/150 System Corruption 14% Temperature Cool (0) Movement Core (950) Ox18 Location -1/Access Parts ------- > --- POWER (2) -------- Micro Antimatter Reactor > --- PROPULSION (7) --- (None) > --- UTILITY (12) ----- High-capacity Storage Unit Medium Matter Pod Improved Matter Compressor Experimental Optical Array Advanced Signal Interpreter Core Analyzer Thermal Shield > --- WEAPON (5) ------- (None) > --- INVENTORY (20) --- Improved Fusion Compressor Quantum Reactor Improved Remote Datajack Sigix Containment Pod Peak State ------------ > --- POWER ------------ Quantum Reactor Light Quantum Reactor > --- PROPULSION ------- Medium Treads Improved Heavy Treads Armored Heavy Treads Improved Heavy Siege Treads > --- UTILITY ---------- Advanced Heat Sink High-capacity Storage Unit Improved Matter Compressor Experimental Optical Array Advanced Signal Interpreter Core Analyzer Heavy Armor Plating Phase Armor Thermal Shield Thermal Shield > --- WEAPON ----------- Gamma Rifle Gamma Rifle Heavy Wave Gun Tri-rail Accelerator > --- INVENTORY -------- Improved Fusion Compressor Quantum Reactor EM Shotgun Railgun Railgun Improved Light Cannon Improved Remote Datajack Sigix Containment Pod [Rating: 186] Favorites ----------- Power Improved Deuterium Engine Engine Improved Deuterium Engine Power Core Improved Fusion Compressor Reactor Light Quantum Reactor Propulsion Aerolev Unit Treads Improved Heavy Siege Treads Leg Advanced Myomer Leg Wheel Wheel Hover Unit Aerolev Unit Utility High-capacity Storage Unit Device Improved Heat Sink Storage High-capacity Storage Unit Processor Core Analyzer Protection Improved Utility Shielding Artifact Phase Armor Weapon Minigun Energy Gun Gamma Rifle Energy Cannon Plasma Cannon Ballistic Gun Minigun Ballistic Cannon Improved Light Cannon Launcher Micro-nuke Launcher Special Weapon Improved Remote Datajack Build | -11 -10 -10 -9 -8 -7 -6 -5 -5 -5 -5 -4 -4 -4 -4 -4 -4 -3 -3 -2 -1 ------- Run | Jun Mat Min Mat Mat Fac Fac Fac Upp Upp Zhi Pro Fac Ext Cet Arc Hub Res Qua Res Acc Slots Evolved 19 | . 1 . 2 2 2 2 2 . . . . 2 . . . . 2 . 2 2 Power 1 | . . . . . . . 1 . . . . . . . . . . . . . Propulsion 5 | . . . . 2 . . . . . . . . . . . . 2 . 1 . Utility 10 | . 1 . 1 . 2 2 . . . . . 2 . . . . . . 1 1 Weapon 3 | . . . 1 . . . 1 . . . . . . . . . . . . 1 Parts Attached 193 | 7 3 1 9 4 17 2 3 5 7 6 6 5 10 6 3 . 44 15 2 38 Power 25 | 1 1 . . . 2 . 1 . 1 . . . 2 . . . 8 2 . 7 Engine 8 | 1 1 . . . 2 . 1 . 1 . . . 1 . . . 1 . . . Core 2 | . . . . . . . . . . . . . . . . . . 1 . 1 Reactor 15 | . . . . . . . . . . . . . 1 . . . 7 1 . 6 Propulsion 38 | 2 . . 3 2 4 . . 1 3 3 1 . 1 1 1 . 7 2 1 6 Treads 18 | 2 . . . . . . . . 3 . . . . 1 1 . 7 2 1 1 Leg 9 | . . . . . . . . . . 3 1 . 1 . . . . . . 4 Wheel 2 | . . . 1 . . . . . . . . . . . . . . . . 1 Hover 9 | . . . 2 2 4 . . 1 . . . . . . . . . . . . Flight . | . . . . . . . . . . . . . . . . . . . . . Utility 46 | 2 1 1 2 1 6 2 1 1 1 3 . 2 2 3 . . 7 3 1 7 Device 18 | . . 1 . . 4 . . 1 1 . . . 2 1 . . 4 . . 4 Storage 7 | 1 . . 1 . . . . . . 1 . . . . . . 1 1 . 2 Processor 6 | 1 . . . . 1 . . . . . . 2 . . . . 1 1 . . Hackware . | . . . . . . . . . . . . . . . . . . . . . Protection 14 | . 1 . 1 1 1 2 1 . . 2 . . . 2 . . 1 . 1 1 Artifact 1 | . . . . . . . . . . . . . . . . . . 1 . . Weapon 84 | 2 1 . 4 1 5 . 1 3 2 . 5 3 5 2 2 . 22 8 . 18 Energy Gun 33 | . . . 2 . 2 . . . 1 . 3 1 1 . . . 9 5 . 9 Energy Cannon 3 | . . . . . 1 . . . . . . . 1 . . . . . . 1 Ballistic Gun 24 | 2 . . . 1 2 . . 3 1 . . . 1 1 2 . 6 2 . 3 Ballistic Cannon 15 | . 1 . 2 . . . 1 . . . 2 2 1 . . . 1 1 . 4 Launcher 4 | . . . . . . . . . . . . . . . . . 4 . . . Special Weapon 5 | . . . . . . . . . . . . . 1 1 . . 2 . . 1 Impact Weapon . | . . . . . . . . . . . . . . . . . . . . . Slashing Weapon . | . . . . . . . . . . . . . . . . . . . . . Piercing Weapon . | . . . . . . . . . . . . . . . . . . . . . Special Melee Weapon . | . . . . . . . . . . . . . . . . . . . . . Unidentified Prototypes 19 | . 1 . . 1 1 . . . . 5 . 1 1 2 . . 3 3 . 1 Corrupted Parts 1 | . . . . . . . . . . . . . . . . . . . 1 . System Corruption 1 | . . . . . . . . . . . . . . . . . . . 1 . Parts Lost 72 | . . 1 . . 2 . . 2 4 . 4 1 8 1 . . 12 4 . 33 Power 9 | . . . . . . . . . 1 . . . 1 . . . 2 . . 5 Propulsion 15 | . . . . . 2 . . 1 2 . . . 1 . . . 2 . . 7 Utility 19 | . . 1 . . . . . 1 . . . 1 3 . . . 3 2 . 8 Weapon 29 | . . . . . . . . . 1 . 4 . 3 1 . . 5 2 . 13 Highest Loss Streak 7 | . . 1 . . 1 . . 1 3 . 2 1 7 1 . . 6 2 . 7 To Critical Strikes 3 | . . . . . . . . . 1 . . . . . . . . . . 2 Average Slot Usage (%) 86 | . 100 99 86 99 94 93 92 93 85 93 98 95 78 80 86 90 82 74 71 67 Engine 6 | . 12 12 10 8 7 6 11 11 10 11 11 10 8 5 5 5 . . . . Reactor 2 | . . . . . . . . . . . . . . 5 5 5 8 8 8 6 Treads 6 | . 25 25 12 . . . . . 6 6 . . . 4 8 10 12 12 12 10 Leg 3 | . . . . . . . . . . 9 21 20 16 2 . . . . . 1 Hover 6 | . . . 3 33 25 18 16 18 . . . . . . . . . . . . Device 16 | . . 7 10 8 18 18 16 18 22 22 22 20 16 20 20 20 15 12 8 10 Storage 6 | . 12 12 10 8 7 6 5 5 5 5 5 5 5 5 5 5 5 4 8 8 Processor 8 | . 12 3 . . 3 6 5 5 5 5 5 13 15 15 15 15 14 17 15 11 Protection 7 | . 12 12 10 15 10 18 15 11 11 10 11 8 1 8 10 10 6 3 . 1 Energy Gun 5 | . . . 6 16 4 . . . 1 5 13 13 2 3 . . 9 4 8 7 Energy Cannon 1 | . . . . . 3 6 5 5 3 . . . . . . . . . . . Ballistic Gun 7 | . 23 12 4 2 13 12 11 13 16 16 1 . . 1 9 15 5 2 . . Ballistic Cannon 3 | . 1 12 18 6 . . 5 2 . . 4 5 9 10 7 5 . 3 4 2 Naked Turns . | . . . . . . . . . . . . . . . . . . . . . Heaviest Build 170 | 17 27 28 65 65 75 79 93 95 95 88 86 95 103 116 116 113 122 156 163 170 Greatest Support 243 | 40 40 40 40 32 34 25 25 34 69 90 115 115 115 80 108 108 230 210 238 243 Greatest Overweight (x) 37 | . . . 7 2 4 3 3 3 10 2 . . 1 1 1 1 1 1 . 37 Average Overweight (x) . | . . . 2 1 2 3 3 2 2 . . . . 1 1 1 . . . . Largest Inventory Capacity 20 | 10 10 10 20 20 20 20 20 20 20 20 20 20 20 20 20 20 20 20 20 20 Average Capacity 19 | 9 10 10 18 20 20 20 20 20 20 20 20 20 20 20 20 20 20 20 20 20 Most Carried 20 | 3 3 4 9 6 15 13 11 13 13 15 14 13 11 12 13 12 20 15 12 13 Average Carried 10 | 1 . 3 4 5 9 12 10 11 11 12 10 8 9 9 11 12 15 9 10 8 Final Capacity 20 | 10 10 10 20 20 20 20 20 20 20 20 20 20 20 20 20 20 20 20 20 20 Final Carried 14 | 1 3 3 7 6 14 12 10 12 11 13 10 11 9 10 12 12 9 10 10 5 Class Distribution -------------------- 27% | Hacker-Gunner 25% | Scavenger-Gunner 24% | Hacker-Tank 13% | Scavenger-Tank 7% | Hacker-Mutant Dominant Class ---------------- Hacker-Mutant | -10/Materials Hacker-Mutant | -10/Mines Hacker-Tank | -9/Materials Hacker-Tank | -8/Materials Hacker-Tank | -7/Factory Hacker-Tank | -6/Factory Hacker-Tank | -5/Factory Hacker-Gunner | -5/Upper Caves Scavenger-Gunner | -5/Upper Caves Hacker-Gunner | -5/Zhirov Scavenger-Gunner | -4/Proximity Caves Scavenger-Gunner | -4/Factory Hacker-Gunner | -4/Extension Scavenger-Tank | -4/Cetus Scavenger-Tank | -4/Archives Scavenger-Tank | -4/Hub_04(d) Hacker-Gunner | -3/Research Hacker-Gunner | -3/Quarantine Hacker-Gunner | -2/Research Scavenger-Tank | -1/Access Resources | -11 -10 -10 -9 -8 -7 -6 -5 -5 -5 -5 -4 -4 -4 -4 -4 -4 -3 -3 -2 -1 ----------- Run | Jun Mat Min Mat Mat Fac Fac Fac Upp Upp Zhi Pro Fac Ext Cet Arc Hub Res Qua Res Acc Matter Collected 10600 | 173 161 168 264 470 948 . . 486 393 . 762 157 610 356 170 . 1803 1054 99 2526 Remotely 1108 | . . . . . . . . . . . . . . . . . . . . 1108 Salvage Created 21119 | . 118 111 482 614 2015 69 . 536 674 . 646 625 933 307 174 . 4923 2735 98 6059 Parts 985 | . 6 4 43 33 120 7 . 15 32 . 30 24 42 10 4 . 224 149 4 238 Haulers Intercepted 5 | . . . . 1 1 . . . . . . . . . . . 3 . . . Recyclers Shooed 7 | . . . . . 1 . . . . . . . . . . . 2 . . 4 Parts Field Recycled . | . . . . . . . . . . . . . . . . . . . . . Retrieved Matter . | . . . . . . . . . . . . . . . . . . . . . Parts Self-Destructed . | . . . . . . . . . . . . . . . . . . . . . Prevented . | . . . . . . . . . . . . . . . . . . . . . Kills | -11 -10 -10 -9 -8 -7 -6 -5 -5 -5 -5 -4 -4 -4 -4 -4 -4 -3 -3 -2 -1 ------- Run | Jun Mat Min Mat Mat Fac Fac Fac Upp Upp Zhi Pro Fac Ext Cet Arc Hub Res Qua Res Acc Combat Hostiles Destroyed 329 | . 2 4 17 10 36 3 . 10 12 . 10 9 17 7 3 . 67 41 1 80 Melee 2 | . . . . . . . . . . . . . . . . . 1 . . 1 Guns 175 | . 2 3 5 3 29 1 . 4 12 . 8 5 1 . . . 48 17 . 37 Cannons 116 | . . 1 12 6 5 2 . 6 . . 2 2 16 7 3 . 2 24 1 27 AOE 22 | . . . . 1 1 . . . . . . 2 . . . . 13 . . 5 Classes Destroyed 22 | . 2 2 5 2 4 . . . . . 1 . 1 . . . 1 1 . 3 Worker 17 | . . . 1 . 1 . . . . . . . . . . . 2 4 . 9 Builder 20 | . . . . 1 . . . . . . . . 3 . . . 6 5 . 5 Tunneler 4 | . . . . . 1 . . . . . . . . . . . 3 . . . Hauler 5 | . . . . 1 1 . . . . . . . . . . . 3 . . . Recycler 9 | . . 1 . . 1 . . . . . . . 2 . . . 1 1 . 3 Mechanic 2 | . . . 1 . . . . . . . . . . . . . . . . 1 Operator 4 | . . . 1 . 1 . . . . . . . . . . . . 2 . . Watcher 32 | . 2 . 4 3 5 . . . . . . 3 3 . . . 3 3 . 6 Swarmer 48 | . . 2 4 . 7 3 . 3 4 . 2 3 4 . . . 2 . . 14 Saboteur 2 | . . . . . . . . . . . . . . . . . . . . 2 Grunt 126 | . 2 2 10 8 14 . . 3 3 . 5 3 6 1 . . 26 12 . 31 Brawler 6 | . . . . . 1 . . 1 1 . . . . . . . 1 . . 2 Duelist 10 | . . . 2 . 2 . . 1 1 . 1 . . . . . . 2 . 1 Protector 3 | . . . . . . . . . . . 1 . . . . . 1 1 . . Researcher 3 | . . . . . . . . . . . . . . . . . . 3 . . Sentry 35 | . . . 1 2 4 . . 2 1 . 1 1 4 . 3 . 9 1 1 5 Hunter 34 | . . . . . 2 . . . . . . 2 . 1 . . 10 7 . 12 Programmer 52 | . . . . . 6 . . . 2 . . . 1 2 . . 16 15 . 10 Heavy 1 | . . . . . . . . . . . . . . . . . . . . 1 Q-Series 2 | . . . . . . . . . . . . . . . . . . . . 2 Behemoth 3 | . . . . . . . . . . . . . 2 . . . 1 . . . Cetus Guard 3 | . . . . . . . . . . . . . . 3 . . . . . . Lightning 3 | . . . . . . . . . . . . . . . . . . 3 . . Executioner 1 | . . . . . . . . . . . . . . . . . 1 . . . Best Kill Streak 18 | . 2 3 10 5 5 3 . 8 4 . 6 3 18 3 2 . 8 11 1 11 Combat Bots Only 12 | . 2 2 9 2 5 3 . 8 4 . 6 3 12 3 2 . 6 8 1 9 Max Kills in Single Turn 6 | . 1 1 2 1 2 1 . 2 1 . 1 1 2 2 1 . 6 3 1 3 Gunslinging 1 | . . . . . 1 . . . . . . . . . . . . . . . Exploded 4 | . . . . 1 1 . . . . . . 1 . . . . 4 . . 2 Melee 1 | . . . . . . . . . . . . . . . . . 1 . . 1 Uniques/NPCs Destroyed . | . . . . . . . . . . . . . . . . . . . . . Combat | -11 -10 -10 -9 -8 -7 -6 -5 -5 -5 -5 -4 -4 -4 -4 -4 -4 -3 -3 -2 -1 -------- Run | Jun Mat Min Mat Mat Fac Fac Fac Upp Upp Zhi Pro Fac Ext Cet Arc Hub Res Qua Res Acc Damage Taken 18121 | . 15 210 284 295 968 18 . 579 424 . 748 339 1225 157 125 . 4131 2414 14 6175 Core 2246 | . 7 32 55 20 98 11 . 25 87 . 115 62 178 19 . . 136 378 . 1023 Absorbed by Shields 480 | . . . . . 4 . . . . . . . 43 78 52 . 303 . . . Redirected to Core 446 | . . . . . . . . . . . . . . . . . . 270 . 176 Redirected to Shielding 316 | . . . . . . . . 32 26 . 49 61 92 . . . . . . 56 Regen/Repaired (Parts) 462 | . . . . 68 71 . 98 . . . . . . . . . . 225 . . Core Remaining (%) 84 | 100 . 84 86 96 86 98 . . . . 68 . . . . 77 . 52 100 . Volleys Fired 905 | . 13 17 37 45 100 3 . 23 26 . 30 25 45 22 8 . 168 119 2 222 Largest 5 | . 2 2 3 3 3 3 . 4 4 . 4 4 3 3 3 . 4 3 3 5 Hottest 373 | . 40 59 117 129 130 130 . 169 165 . 164 278 198 167 142 . 319 223 210 373 Shots Fired 2455 | . 26 34 111 81 285 9 . 77 84 . 107 83 109 52 14 . 506 291 6 580 Gun 1739 | . 26 17 17 49 260 6 . 57 81 . 80 58 15 14 4 . 459 179 4 413 Cannon 687 | . . 17 94 32 25 3 . 20 3 . 27 25 94 38 10 . 18 112 2 167 Launcher 26 | . . . . . . . . . . . . . . . . . 26 . . . Special 3 | . . . . . . . . . . . . . . . . . 3 . . . Kinetic 1416 | . 26 34 111 45 204 6 . 69 78 . 77 25 99 40 14 . 178 174 2 234 Thermal 504 | . . . . . 47 3 . 8 6 . 26 21 . . . . 223 34 . 136 Explosive 26 | . . . . . . . . . . . . . . . . . 26 . . . Electromagnetic 506 | . . . . 36 34 . . . . . 4 37 10 12 . . 76 83 4 210 Robot Hit Streak 52 | . 11 7 24 25 26 3 . 15 25 . 52 22 29 21 17 . 39 47 13 34 Robot Miss Streak 3 | . 2 1 2 2 2 1 . 2 1 . 1 1 3 2 1 . 2 2 . 3 Penetration Max 1 | . . . . . 1 . . 1 . . . . 1 . . . 1 1 . 1 Secondary Targets 25 | . . . . 1 3 . . . 2 . 1 . . . . . 11 . . 7 Max Gunslinging Chain 1 | . . . . 1 1 . . . 1 . 1 . . . . . 1 . . 1 Shots Hit Robots 1889 | . 21 22 71 70 206 3 . 59 69 . 88 52 86 38 14 . 403 217 6 464 Core Hits 1023 | . 8 7 29 38 98 4 . 25 25 . 36 41 53 23 13 . 233 142 3 245 Critical Kills 22 | . 1 . . . 1 . . 2 6 . 1 . 1 . . . 3 6 . 1 Critical Parts Destroyed 29 | . . . . . . . . 2 7 . 5 . . . . . 8 6 . 1 Critical Strikes 117 | . 1 . 3 2 1 . . 6 14 . 11 2 5 4 . . 25 16 . 27 Burn 13 | . . . . . . . . . . . 2 . . . . . 7 1 . 3 Meltdown 2 | . . . . . 1 . . . . . . . . . . . . . . 1 Destroy 57 | . 1 . . . . . . 6 14 . 8 . 1 . . . 13 12 . 2 Blast 37 | . . . 3 2 . . . . . . 1 1 4 4 . . 3 3 . 16 Corrupt 8 | . . . . . . . . . . . . 1 . . . . 2 . . 5 Melee Attacks . | . . . . . . . . . . . . . . . . . . . . . Impact . | . . . . . . . . . . . . . . . . . . . . . Slashing . | . . . . . . . . . . . . . . . . . . . . . Piercing . | . . . . . . . . . . . . . . . . . . . . . Sneak Attacks . | . . . . . . . . . . . . . . . . . . . . . Combat Hostiles . | . . . . . . . . . . . . . . . . . . . . . Follow-up Attacks . | . . . . . . . . . . . . . . . . . . . . . Damage Inflicted 57836 | . 252 412 1432 1397 4193 104 . 1155 805 . 1536 1518 3915 1576 536 . 13575 8705 197 16528 Guns 30975 | . 252 133 176 761 3404 56 . 717 779 . 1090 915 271 121 107 . 9892 3360 88 8853 Cannons 22137 | . . 279 1256 547 561 48 . 438 26 . 446 352 3629 1455 429 . 532 5345 109 6685 Explosions 4565 | . . . . 86 187 . . . . . . 251 . . . . 3086 . . 955 Melee . | . . . . . . . . . . . . . . . . . . . . . Ramming 159 | . . . . 3 41 . . . . . . . 15 . . . 65 . . 35 Kinetic 33191 | . 252 412 1432 713 2519 56 . 974 719 . 1035 352 3720 1455 536 . 4007 6836 109 8064 Thermal 12407 | . . . . 86 1073 48 . 181 86 . 445 503 . . . . 5097 778 . 4110 Explosive 3359 | . . . . . . . . . . . . . . . . . 3036 . . 323 Electromagnetic 8720 | . . . . 595 560 . . . . . 56 663 180 121 . . 1370 1091 88 3996 Impact . | . . . . . . . . . . . . . . . . . . . . . Slashing . | . . . . . . . . . . . . . . . . . . . . . Piercing . | . . . . . . . . . . . . . . . . . . . . . Highest Corruption 30 | . . . . . 3 . . . . . . . 1 2 2 2 14 30 1 14 Average Corruption 6 | . . . . . 2 . . . . . . . 1 1 2 2 7 17 1 9 Corruption Purged . | . . . . . . . . . . . . . . . . . . . . . Corruption Blocked 45 | . . . . . . . . . . . . . . . . . . 45 . . Effects 268 | . . . . . 46 . . . . . . . 6 4 2 . 78 89 . 43 Message Errors 59 | . . . . . 12 . . . . . . . . 3 1 . 18 19 . 6 Matter Fused 50 | . . . . . 8 . . . . . . . 1 1 . . 19 11 . 10 Heat Flow Errors 26 | . . . . . 5 . . . . . . . 2 . . . 8 8 . 3 Energy Discharges 31 | . . . . . 8 . . . . . . . 2 . . . 8 7 . 6 Parts Rejected 7 | . . . . . 2 . . . . . . . . . . . 1 1 . 3 Data Loss (minor) 18 | . . . . . 3 . . . . . . . . . 1 . 6 7 . 1 Data Loss (major) 16 | . . . . . 2 . . . . . . . 1 . . . 5 5 . 3 Misfires 20 | . . . . . 4 . . . . . . . . . . . 7 7 . 2 Alerts 6 | . . . . . . . . . . . . . . . . . 2 2 . 2 Misdirections 1 | . . . . . . . . . . . . . . . . . . . . 1 Weapon Failures 34 | . . . . . 2 . . . . . . . . . . . 4 22 . 6 Overload Shots . | . . . . . . . . . . . . . . . . . . . . . Overflow Damage 379 | . . 16 18 . 10 . . . . . . 7 104 14 . . 10 69 . 131 Projectiles 330 | . . 16 18 . . . . . . . . 7 104 14 . . . 69 . 102 Explosions 35 | . . . . . . . . . . . . . . . . . 10 . . 25 Melee 14 | . . . . . 10 . . . . . . . . . . . . . . 4 Knockbacks 131 | . . 5 15 2 1 . . . . . 7 4 21 10 . . . 37 . 29 Impact 2 | . . . . . 1 . . . . . . . . . . . . . . 1 Kinetic 114 | . . 4 14 2 . . . . . . 6 3 18 10 . . . 36 . 21 Secondary 15 | . . 1 1 . . . . . . . 1 1 3 . . . . 1 . 7 Self-Inflicted Damage 319 | . . . . 1 20 . . . . . . 44 . . . . 209 . . 45 Shots 11 | . . . . . . . . . . . . 1 . . . . 8 . . 2 Rammed 15 | . . . . 1 3 . . . . . . . . . . . 9 . . 2 Targets Rammed 17 | . . 1 . 1 3 . . . . . . . 1 . . . 9 . . 2 Kicked 1 | . . . . . . . . . . . . . 1 . . . . . . . Crushed 1 | . . 1 . . . . . . . . . . . . . . . . . . Highest Temperature 524 | . 5 153 84 220 249 50 . 465 174 . 7 109 219 32 . . 524 226 3 456 Average Temperature 89 | . 2 87 35 65 44 25 . 183 93 . 6 27 83 19 . . 123 94 2 109 Received Heat Transfer 3132 | . 15 162 144 207 381 . . 144 180 . 144 97 217 57 42 . 838 126 . 378 Effects 12 | . . . . . . . . 2 . . . . . . . . 6 . . 4 Shutdowns 5 | . . . . . . . . 1 . . . . . . . . 2 . . 2 Energy Bleed 2 | . . . . . . . . . . . . . . . . . 2 . . . Interference 1 | . . . . . . . . . . . . . . . . . . . . 1 Matter Decay 1 | . . . . . . . . . . . . . . . . . 1 . . . Short Circuit 1 | . . . . . . . . . . . . . . . . . 1 . . . Damage (minor) 2 | . . . . . . . . 1 . . . . . . . . . . . 1 Siege Activations . | . . . . . . . . . . . . . . . . . . . . . Robots Corrupted 12 | . . . . 1 . . . . . . . . . . . . 2 . . 9 Combat Hostiles 11 | . . . . . . . . . . . . . . . . . 2 . . 9 Parts Fried 53 | . . . . 3 3 . . . . . . 5 1 . . . 8 2 1 30 Impact Corruptions 3 | . . . . . 1 . . . . . . 1 . . . . . . . 1 Robots Melted 3 | . . . . . 1 . . . . . . . . . . . 1 . . 1 Combat Hostiles 3 | . . . . . 1 . . . . . . . . . . . 1 . . 1 Parts Melted 25 | . . . . . 1 . . . 1 . . . . . . . 12 . . 11 Heat Transferred 17137 | . . . . 50 1705 100 . 350 161 . 909 557 . . . . 7307 1034 . 4964 Parts Sabotaged 4 | . . . . . . . . . . . . . . . . . . 2 . 2 Parts Stolen . | . . . . . . . . . . . . . . . . . . . . . Parts Stripped . | . . . . . . . . . . . . . . . . . . . . . Power Chain Reactions 8 | . . . . 2 2 . . . . . . 2 . . . . . . . 2 Missiles Intercepted . | . . . . . . . . . . . . . . . . . . . . . Alert | -11 -10 -10 -9 -8 -7 -6 -5 -5 -5 -5 -4 -4 -4 -4 -4 -4 -3 -3 -2 -1 ------- Run | Jun Mat Min Mat Mat Fac Fac Fac Upp Upp Zhi Pro Fac Ext Cet Arc Hub Res Qua Res Acc Peak Influence 1067 | . 79 116 501 433 377 111 49 . . . . 250 377 400 133 31 953 659 315 1067 Initial 276 | . . 21 . 85 43 25 39 . . . . . 32 30 28 31 11 276 267 142 Average 279 | . 37 31 197 253 95 60 44 . . . . 79 106 228 115 31 436 435 282 550 Maximum Alert Level 3 | . . . 2 2 1 . . . . . . 1 1 2 . . 3 2 1 3 Low Security (%) 47 | 100 100 100 34 38 89 100 100 . . . . 86 84 40 100 100 19 . . 8 Level 1 24 | . . . 60 43 10 . . . . . . 13 15 49 . . 18 48 100 27 Level 2 21 | . . . 4 17 . . . . . . . . . 10 . . 50 51 . 29 Level 3 7 | . . . . . . . . . . . . . . . . . 11 . . 34 Level 4 . | . . . . . . . . . . . . . . . . . . . . . Level 5 . | . . . . . . . . . . . . . . . . . . . . . High Security . | . . . . . . . . . . . . . . . . . . . . . Max Security . | . . . . . . . . . . . . . . . . . . . . . Squads Dispatched 70 | . . . 2 1 10 . 1 . . . 1 1 4 1 . . 24 9 . 16 Investigation 16 | . . . . . 2 . 1 . . . . 1 3 1 . . 5 1 . 2 Extermination 19 | . . . . . 4 . . . . . . . . . . . 6 4 . 5 Reinforcement 17 | . . . 2 1 4 . . . . . . . 1 . . . 3 2 . 4 Assault 8 | . . . . . . . . . . . 1 . . . . . 3 1 . 3 Garrison 10 | . . . . . . . . . . . . . . . . . 7 1 . 2 Intercept . | . . . . . . . . . . . . . . . . . . . . . Searches Triggered . | . . . . . . . . . . . . . . . . . . . . . Construction Impeded 7 | . . . 1 . 1 . . . . . . . . . . . 2 1 . 2 Haulers Reinforced 3 | . . . . . 2 . . . . . . . . . . . 1 . . . Active Scanning Responses . | . . . . . . . . . . . . . . . . . . . . . Cargo Convoy Interrupts 1 | . . . . . . . . . . . . . . . . . 1 . . . Stealth | -11 -10 -10 -9 -8 -7 -6 -5 -5 -5 -5 -4 -4 -4 -4 -4 -4 -3 -3 -2 -1 --------- Run | Jun Mat Min Mat Mat Fac Fac Fac Upp Upp Zhi Pro Fac Ext Cet Arc Hub Res Qua Res Acc Distress Signals 17 | . . . 2 3 . . . . . . . . 4 1 . . 5 1 . 1 Communications Jammed . | . . . . . . . . . . . . . . . . . . . . . Distress Signals . | . . . . . . . . . . . . . . . . . . . . . Times Spotted 440 | . 5 4 28 17 46 3 . 12 15 . 13 13 28 15 6 . 86 48 1 100 Peak Tracking Total 9 | . 3 2 6 5 4 2 . 9 4 . 8 3 7 5 2 . 7 6 1 6 Tactical Retreats 23 | . . . 5 1 3 1 . . 4 . 4 . 1 . . . 1 . . 3 Traps | -11 -10 -10 -9 -8 -7 -6 -5 -5 -5 -5 -4 -4 -4 -4 -4 -4 -3 -3 -2 -1 ------- Run | Jun Mat Min Mat Mat Fac Fac Fac Upp Upp Zhi Pro Fac Ext Cet Arc Hub Res Qua Res Acc Traps Triggered 13 | . . . . . 2 . . . . . . 1 3 . . . 3 2 . 2 Indirectly 1 | . . . . . . . . . . . . . . . . . 1 . . . Trap Hack Attempts . | . . . . . . . . . . . . . . . . . . . . . Triggered . | . . . . . . . . . . . . . . . . . . . . . Disarmed . | . . . . . . . . . . . . . . . . . . . . . Reprogrammed . | . . . . . . . . . . . . . . . . . . . . . Reused . | . . . . . . . . . . . . . . . . . . . . . Traps Extracted . | . . . . . . . . . . . . . . . . . . . . . Installed . | . . . . . . . . . . . . . . . . . . . . . Triggered . | . . . . . . . . . . . . . . . . . . . . . Machines | -11 -10 -10 -9 -8 -7 -6 -5 -5 -5 -5 -4 -4 -4 -4 -4 -4 -3 -3 -2 -1 ---------- Run | Jun Mat Min Mat Mat Fac Fac Fac Upp Upp Zhi Pro Fac Ext Cet Arc Hub Res Qua Res Acc Machines Disabled 29 | . . . 2 . 4 . . . . . . . 4 3 . . 9 5 . 2 Max in Single Turn 4 | . . . 1 . 4 . . . . . . . 1 1 . . 1 1 . 1 Garrison Access 3 | . . . . . 1 . . . . . . . . . . . 1 . . 1 Machines Repaired . | . . . . . . . . . . . . . . . . . . . . . Machines Sabotaged . | . . . . . . . . . . . . . . . . . . . . . Overloaded Fab Kills . | . . . . . . . . . . . . . . . . . . . . . Hacking | -11 -10 -10 -9 -8 -7 -6 -5 -5 -5 -5 -4 -4 -4 -4 -4 -4 -3 -3 -2 -1 --------- Run | Jun Mat Min Mat Mat Fac Fac Fac Upp Upp Zhi Pro Fac Ext Cet Arc Hub Res Qua Res Acc Machines Accessed 48 | . 1 . 2 1 6 . 1 . . 3 . 3 8 3 . . 7 9 . 4 Terminals 26 | . 1 . 2 . . . . . . . . 2 8 3 . . 1 7 . 2 Fabricators 9 | . . . . . 4 . . . . . . 1 . . . . 3 . . 1 Repair Stations 7 | . . . . 1 1 . 1 . . . . . . . . . 2 2 . . Recycling Units . | . . . . . . . . . . . . . . . . . . . . . Scanalyzers . | . . . . . . . . . . . . . . . . . . . . . Garrison Access 3 | . . . . . 1 . . . . . . . . . . . 1 . . 1 Total Hacks 104 | . 1 . 2 2 13 . 6 . . 9 . 8 15 7 . . 19 14 . 8 Successful 62 | . 1 . 2 2 10 . 2 . . 9 . 5 6 6 . . 9 9 . 1 Failed 42 | . . . . . 3 . 4 . . . . 3 9 1 . . 10 5 . 7 Catastrophic 5 | . . . . . . . . . . . . 1 1 . . . 1 . . 2 Database Lockouts . | . . . . . . . . . . . . . . . . . . . . . Manual 7 | . . . . . 1 . . . . . . . . . 1 . . 2 . 3 Terminals 46 | . 1 . 2 . . . . . . . . 5 15 7 . . 2 9 . 5 Fabricators 21 | . . . . . 9 . . . . . . 3 . . . . 8 . . 1 Repair Stations 21 | . . . . 2 2 . 6 . . . . . . . . . 6 5 . . Recycling Units . | . . . . . . . . . . . . . . . . . . . . . Scanalyzers . | . . . . . . . . . . . . . . . . . . . . . Garrison Access 7 | . . . . . 2 . . . . . . . . . . . 3 . . 2 Terminal Hacks 35 | . 1 . 2 . . . . . . 9 . 2 6 6 . . 2 7 . . Record 9 | . . . . . . . . . . 1 . . . 5 . . 1 2 . . Part Schematic 4 | . . . . . . . . . . 4 . . . . . . . . . . Robot Analysis 5 | . . . . . . . . . . . . 1 . . . . 1 3 . . Prototype ID Bank 7 | . . . 2 . . . . . . 4 . . 1 . . . . . . . Open Door 8 | . . . . . . . . . . . . 1 5 1 . . . 1 . . Emergency Access Points 1 | . . . . . . . . . . . . . . . . . . 1 . . Locate Traps 1 | . 1 . . . . . . . . . . . . . . . . . . . Fabricator Hacks 13 | . . . . . 6 . . . . . . 3 . . . . 4 . . . Network Status 3 | . . . . . 3 . . . . . . . . . . . . . . . Load Schematic 3 | . . . . . . . . . . . . 2 . . . . 1 . . . Build 7 | . . . . . 3 . . . . . . 1 . . . . 3 . . . Repair Station Hacks 10 | . . . . 2 2 . 2 . . . . . . . . . 2 2 . . Scan Component 6 | . . . . 1 1 . 1 . . . . . . . . . 2 1 . . Repair 4 | . . . . 1 1 . 1 . . . . . . . . . . 1 . . Recycling Unit Hacks . | . . . . . . . . . . . . . . . . . . . . . Scanalyzer . | . . . . . . . . . . . . . . . . . . . . . Garrison Access Hacks 3 | . . . . . 1 . . . . . . . . . . . 1 . . 1 Seal Access 3 | . . . . . 1 . . . . . . . . . . . 1 . . 1 Unauthorized Hacks 1 | . . . . . 1 . . . . . . . . . . . . . . . Terminals . | . . . . . . . . . . . . . . . . . . . . . Fabricators 1 | . . . . . 1 . . . . . . . . . . . . . . . Download 1 | . . . . . 1 . . . . . . . . . . . . . . . Repair Stations . | . . . . . . . . . . . . . . . . . . . . . Recycling Units . | . . . . . . . . . . . . . . . . . . . . . Scanalyzers . | . . . . . . . . . . . . . . . . . . . . . Garrison Access . | . . . . . . . . . . . . . . . . . . . . . Data Cores Recovered 3 | . . . 1 . . . . . . . . . 1 . . . . 1 . . Used 1 | . . . 1 . . . . . . . . . . . . . . . . . Hacking Detections 31 | . . . 1 1 3 . 1 . . . . 1 4 2 . . 7 6 . 5 Full Trace Events 12 | . . . . . 1 . 1 . . . . 1 2 1 . . 4 . . 2 Feedback Events 4 | . . . . . 1 . . . . . . . . 1 . . 1 . . 1 Corruption 4 | . . . . . 1 . . . . . . . . 1 . . 1 . . 1 Feedback Blocked . | . . . . . . . . . . . . . . . . . . . . . Robot Schematics Acquired 2 | . . . . . . . . . . . . . . . . . . 2 . . Robots Built 1 | . . . . . . . . . . . . . . . . . 1 . . . Authchips . | . . . . . . . . . . . . . . . . . . . . . Time 62 | . . . . . . . . . . . . . . . . . 62 . . . Total Robot Build Rating 7 | . . . . . . . . . . . . . . . . . 7 . . . Part Schematics Acquired 12 | . . . . . . . . . . 4 . . . . . . . 8 . . Parts Built 9 | . . . . . 5 . . . . . . 1 . . . . 3 . . . Authchips . | . . . . . . . . . . . . . . . . . . . . . Time 393 | . . . . . 168 . . . . . . 117 . . . . 108 . . . Total Part Build Rating 52 | . . . . . 20 . . . . . . 7 . . . . 25 . . . Parts Repaired 4 | . . . . 1 1 . 1 . . . . . . . . . . 1 . . Time 109 | . . . . 26 20 . 19 . . . . . . . . . . 44 . . Parts Recycled . | . . . . . . . . . . . . . . . . . . . . . Recycled Matter . | . . . . . . . . . . . . . . . . . . . . . Retrieved Matter . | . . . . . . . . . . . . . . . . . . . . . Retrieved Components . | . . . . . . . . . . . . . . . . . . . . . Parts Scanalyzed . | . . . . . . . . . . . . . . . . . . . . . Part Schematics Acquired . | . . . . . . . . . . . . . . . . . . . . . Parts Damaged . | . . . . . . . . . . . . . . . . . . . . . Bothacking | -11 -10 -10 -9 -8 -7 -6 -5 -5 -5 -5 -4 -4 -4 -4 -4 -4 -3 -3 -2 -1 ------------ Run | Jun Mat Min Mat Mat Fac Fac Fac Upp Upp Zhi Pro Fac Ext Cet Arc Hub Res Qua Res Acc Used RIF Installer . | . . . . . . . . . . . . . . . . . . . . . Robots Hacked 2 | . . . . . . . . . . . . . . . . . 2 . . . Non-combat . | . . . . . . . . . . . . . . . . . . . . . Combat . | . . . . . . . . . . . . . . . . . . . . . Robot Hacks Applied . | . . . . . . . . . . . . . . . . . . . . . Manual 2 | . . . . . . . . . . . . . . . . . 2 . . . Relay Couplers Released 3 | . . . . . . . . . . . . . . . . . 3 . . . Programmers 3 | . . . . . . . . . . . . . . . . . 3 . . . Fabnet Peak Effective % . | . . . . . . . . . . . . . . . . . . . . . Robots Rewired 4 | . . . . . . . . 2 . . 2 . . . . . . . . . Allies Hacked . | . . . . . . . . . . . . . . . . . . . . . Hacks Repelled . | . . . . . . . . . . . . . . . . . . . . . Allies | -11 -10 -10 -9 -8 -7 -6 -5 -5 -5 -5 -4 -4 -4 -4 -4 -4 -3 -3 -2 -1 -------- Run | Jun Mat Min Mat Mat Fac Fac Fac Upp Upp Zhi Pro Fac Ext Cet Arc Hub Res Qua Res Acc Total Allies 15 | . . . . . . . . 2 . . 2 . 8 . . . 3 . . . Largest Group 3 | . . . . . . . . 2 2 . 2 1 3 2 2 . 2 . . . Highest-Rated Group 232 | . . . . . . . . 59 59 . 95 48 210 210 204 . 232 . . . Highest-Rated Ally 159 | . . . . . . . . 30 30 . 48 48 159 159 153 . 116 . . . Total Orders . | . . . . . . . . . . . . . . . . . . . . . Ally Attacks 150 | . . . . . . . . 7 9 . 18 2 53 39 3 . 19 . . . Total Damage 4183 | . . . . . . . . 164 126 . 391 73 954 1269 118 . 1088 . . . Kills 22 | . . . . . . . . 1 1 . 2 . 8 7 1 . 2 . . . Allies Corrupted 1 | . . . . . . . . . . . . . 1 . . . . . . . Allies Melted . | . . . . . . . . . . . . . . . . . . . . . Intel | -11 -10 -10 -9 -8 -7 -6 -5 -5 -5 -5 -4 -4 -4 -4 -4 -4 -3 -3 -2 -1 ------- Run | Jun Mat Min Mat Mat Fac Fac Fac Upp Upp Zhi Pro Fac Ext Cet Arc Hub Res Qua Res Acc Robot Analysis Total 5 | . . . . . . . . . . . . 1 . . . . 1 3 . . Derelict Logs Recovered 6 | . . 1 . . . . . 2 1 . 2 . . . . . . . . . Drone Launches . | . . . . . . . . . . . . . . . . . . . . . Drone Recoveries . | . . . . . . . . . . . . . . . . . . . . . Exploration | -11 -10 -10 -9 -8 -7 -6 -5 -5 -5 -5 -4 -4 -4 -4 -4 -4 -3 -3 -2 -1 ------------- Run | Jun Mat Min Mat Mat Fac Fac Fac Upp Upp Zhi Pro Fac Ext Cet Arc Hub Res Qua Res Acc Turns Passed 19043 | 87 224 592 744 401 3024 157 103 1263 1533 345 1641 572 1011 486 167 24 2855 1546 180 2088 Spaces Moved 8439 | 50 109 316 221 170 1464 64 34 595 376 215 1060 293 518 176 59 11 1207 655 98 748 Core 11 | 6 . . . . . . . . . . . . . . . . . . . 5 Treads 3787 | 44 109 316 155 . . . . . 351 56 . . . 142 59 11 1207 655 98 584 Legs 2186 | . . . . . . . . . . 159 1060 293 518 34 . . . . . 122 Wheels 52 | . . . 15 . . . . . . . . . . . . . . . . 37 Hover 2403 | . . . 51 170 1464 64 34 595 25 . . . . . . . . . . . Flight . | . . . . . . . . . . . . . . . . . . . . . Fastest Speed 50 | 50 160 160 160 98 98 228 228 165 228 120 120 120 120 190 240 240 161 165 167 113 Average Speed 176 | 146 160 160 263 141 166 228 228 196 383 152 120 120 155 230 240 240 174 169 169 177 Slowest Speed 1900 | 160 160 160 470 158 286 228 228 228 650 260 120 120 190 240 240 240 270 245 170 1900 Overloaded Moves . | . . . . . . . . . . . . . . . . . . . . . Propulsion Burnouts . | . . . . . . . . . . . . . . . . . . . . . Robots Hopped . | . . . . . . . . . . . . . . . . . . . . . Cave-ins Triggered . | . . . . . . . . . . . . . . . . . . . . . Teleports 2 | . . . . . . . . . . 1 . . . . . . . 1 . . Exploration Rate (%) 43 | 4 24 78 34 28 45 3 2 84 74 62 98 11 75 77 79 1 42 71 4 23 Regions Visited 20 Branch Regions 10 Pre-discovered Areas . | . . . . . . . . . . . . . . . . . . . . . Known Exits Taken 20 | 1 1 1 1 1 1 1 1 1 1 1 1 1 1 1 1 1 1 1 1 . Unknown Exits Taken . | . . . . . . . . . . . . . . . . . . . . . Scrap Searched 8 | . . . . . . . . 3 2 . 3 . . . . . . . . . Spaces Dug 33 | . . . . . . . . . . . . 2 . . . . 27 . . 4 Terrain Destroyed 604 | . . . 3 8 36 . . . 3 . 2 19 33 3 . . 403 25 . 69 Melee . | . . . . . . . . . . . . . . . . . . . . . Projectile 102 | . . . 3 1 . . . . 1 . . 3 33 3 . . 9 25 . 24 AOE 496 | . . . . 7 36 . . . . . . 16 . . . . 394 . . 43 Terrain Rammed . | . . . . . . . . . . . . . . . . . . . . . Walls Destroyed . | . . . . . . . . . . . . . . . . . . . . . Machines Disabled . | . . . . . . . . . . . . . . . . . . . . . Actions | -11 -10 -10 -9 -8 -7 -6 -5 -5 -5 -5 -4 -4 -4 -4 -4 -4 -3 -3 -2 -1 --------- Run | Jun Mat Min Mat Mat Fac Fac Fac Upp Upp Zhi Pro Fac Ext Cet Arc Hub Res Qua Res Acc Total 10816 | 64 132 368 301 267 1881 71 60 642 415 234 1363 459 626 216 73 10 1625 852 108 1049 Wait 1032 | . 3 33 22 46 269 3 23 . . . 259 127 42 5 . . 141 46 4 9 Move 8419 | 49 108 315 220 169 1463 63 33 594 375 214 1059 292 517 175 58 10 1206 654 97 748 Hop . | . . . . . . . . . . . . . . . . . . . . . Pick Up 152 | 8 4 1 10 2 21 . 1 4 5 7 2 5 5 5 3 . 29 12 2 26 Fast Attach . | . . . . . . . . . . . . . . . . . . . . . Attach 143 | 7 1 1 6 3 7 2 3 2 5 7 5 3 8 4 3 . 26 14 2 34 Detach 22 | . . . . . 1 . . . . 2 . 2 1 . 1 . 9 2 1 3 Swap 54 | . 2 . 3 1 10 . . 3 2 1 1 2 2 2 . . 18 3 . 4 Drop 44 | . 1 . 3 . 7 . . . 2 3 . 3 . 3 . . 19 2 . 1 Fire 905 | . 13 17 37 45 100 3 . 23 26 . 30 25 45 22 8 . 168 119 2 222 Melee . | . . . . . . . . . . . . . . . . . . . . . Ram 5 | . . . . 1 3 . . . . . . . . . . . . . . 1 Kick 1 | . . . . . . . . . . . . . 1 . . . . . . . Crush 11 | . . 1 . . . . . . . . . . . . . . 9 . . 1 Escape Stasis 5 | . . . . . . . . . . . . . 5 . . . . . . . Rewire 23 | . . . . . . . . 16 . . 7 . . . . . . . . . Trap . | . . . . . . . . . . . . . . . . . . . . . Miscellaneous . | . . . . . . . . . . . . . . . . . . . . . Route ------- -11/Junkyard -10/Materials -10/Mines -9/Materials (discovered 2 exits: *Mat / *Sto) -8/Materials -7/Factory -6/Factory -5/Factory -5/Upper Caves -5/Upper Caves (discovered 2 exits: *Fac / *Zhi) -5/Zhirov -4/Proximity Caves -4/Factory (discovered 5 exits: *Res x3 / Upp / *Ext) -4/Extension (discovered 2 exits: *Res / *Cet) -4/Cetus -4/Archives (discovered 2 exits: *Res / *Hub) -4/Hub_04(d) -3/Research -3/Quarantine -2/Research -1/Access History --------- Turn | Location | Event 20 | -11/Junkyard | Identified exit to Materials 20 | -11/Junkyard | Discovered exit to Materials (range 16) 88 | -11/Junkyard | Entered Materials 88 | -10/Materials | Evolved 1 slot: Utility x1 270 | -10/Materials | Identified exit to Mines 270 | -10/Materials | Discovered exit to Mines (range 9) 312 | -10/Materials | Build established: Hacker-Mutant 312 | -10/Materials | Entered Mines 861 | -10/Mines | Learned Materials trap positions 885 | -10/Mines | Identified exit to Materials 885 | -10/Mines | Discovered exit to Materials (range 10) 904 | -10/Mines | Entered Materials 904 | -9/Materials | Evolved 2 slots: Utility x1, Weapon x1 905 | -9/Materials | Loaded intel: 20 trap records 944 | -9/Materials | Identified exit to Storage 944 | -9/Materials | Discovered exit to Storage (range 5) 1285 | -9/Materials | Build established: Hacker-Tank 1325 | -9/Materials | Destroyed 9 combat bots 1605 | -9/Materials | Identified exit to Materials 1605 | -9/Materials | Discovered exit to Materials (range 16) 1648 | -9/Materials | Entered another Materials area 1648 | -8/Materials | Evolved 2 slots: Propulsion x2 1912 | -8/Materials | Repaired Lgt. Armor Plating 2036 | -8/Materials | Identified exit to Factory 2036 | -8/Materials | Discovered exit to Factory (range 11) 2049 | -8/Materials | Entered Factory 2049 | -7/Factory | Evolved 2 slots: Utility x2 2560 | -7/Factory | Fabricated Coolant Injector (x2) 3072 | -7/Factory | Fabricated Imp. Deuterium Engine (x2) 4222 | -7/Factory | Repaired Aerolev Unit 4989 | -7/Factory | Fabricated Kinecellerator (x1) 5046 | -7/Factory | Identified exit to Factory 5046 | -7/Factory | Discovered exit to Factory (range 16) 5073 | -7/Factory | Entered another Factory area 5073 | -6/Factory | Evolved 2 slots: Utility x2 5196 | -6/Factory | Identified exit to Factory 5196 | -6/Factory | Discovered exit to Factory (range 16) 5230 | -6/Factory | Entered another Factory area 5230 | -5/Factory | Evolved 2 slots: Power x1, Weapon x1 5293 | -5/Factory | Repaired Insulated Plating 5306 | -5/Factory | Identified exit to Upper Caves 5306 | -5/Factory | Discovered exit to Upper Caves (range 9) 5333 | -5/Factory | Entered Upper Caves 5367 | -5/Upper Caves | Attracted the attention of an 0b10 outpost 5433 | -5/Upper Caves | Destroyed 8 combat bots 5589 | -5/Upper Caves | Encountered a Warlord checkpoint 5706 | -5/Upper Caves | Build established: Hacker-Gunner 6060 | -5/Upper Caves | Spotted B-75 Beast 6076 | -5/Upper Caves | Allies destroyed B-75 Beast 6097 | -5/Upper Caves | Identified exit to Upper Caves 6564 | -5/Upper Caves | Attracted the attention of an 0b10 checkpoint 6596 | -5/Upper Caves | Entered another Upper Caves area 6596 | -5/Upper Caves | Accompanied by 2 allies 6642 | -5/Upper Caves | Identified exit to Factory 6642 | -5/Upper Caves | Discovered exit to Factory (range 5) 6703 | -5/Upper Caves | Lost 3 parts (1p2n) 6995 | -5/Upper Caves | Build established: Scavenger-Gunner 7797 | -5/Upper Caves | Attracted the attention of an 0b10 checkpoint 8085 | -5/Upper Caves | Learned 12 Factory zone layouts 8102 | -5/Upper Caves | Identified exit to Zhirov 8102 | -5/Upper Caves | Discovered exit to Zhirov (range 12) 8129 | -5/Upper Caves | Entered Zhirov 8129 | -5/Zhirov | Identified exit to Proximity Caves 8129 | -5/Zhirov | Discovered exit to Proximity Caves (range 3) 8173 | -5/Zhirov | Met Zhirov 8233 | -5/Zhirov | Found Alien Artifact 8277 | -5/Zhirov | Identified Transdimensional Reconstructor 8277 | -5/Zhirov | Warped through subspace 8344 | -5/Zhirov | Found Alien Artifact 8346 | -5/Zhirov | Identified Integrated Dissipator 8346 | -5/Zhirov | Installed Integrated Dissipator, increased core heat dissipation (+20) 8390 | -5/Zhirov | Zhirov requested help retrieving the SGEMP Prototype 8474 | -5/Zhirov | Entered Proximity Caves 8541 | -4/Proximity Caves | Attracted the attention of an 0b10 outpost 8894 | -4/Proximity Caves | Learned Research machine intel 9321 | -4/Proximity Caves | Received a Behemoth hack from an annoying Tinkerer 10115 | -4/Proximity Caves | Entered Factory 10115 | -4/Factory | Accompanied by 1 ally 10115 | -4/Factory | Evolved 2 slots: Utility x2 10116 | -4/Factory | Identified exit to Research 10116 | -4/Factory | Identified exit to Upper Caves 10313 | -4/Factory | Fabricated Imp. Arc Thrower (x1) 10683 | -4/Factory | Identified exit to Extension 10683 | -4/Factory | Discovered exit to Extension (range 6) 10687 | -4/Factory | Entered Extension 10746 | -4/Extension | Rescued a captive Derelict 10747 | -4/Extension | Rescued a captive Derelict 10811 | -4/Extension | Rescued a captive Derelict 10925 | -4/Extension | Rescued a captive Derelict 10925 | -4/Extension | Rescued a captive Derelict 11019 | -4/Extension | Spotted B-86 Titan 11085 | -4/Extension | Destroyed B-86 Titan 11088 | -4/Extension | Spotted B-86 Titan 11105 | -4/Extension | Destroyed B-86 Titan 11125 | -4/Extension | Lost 7 parts (1p1n3u2w) 11126 | -4/Extension | Destroyed 12 combat bots 11280 | -4/Extension | Rescued a captive Derelict 11281 | -4/Extension | Rescued a captive Derelict 11362 | -4/Extension | Build established: Hacker-Gunner 11447 | -4/Extension | Rescued A7 11662 | -4/Extension | Discovered exit to Research (range 10) 11664 | -4/Extension | Identified exit to Cetus 11664 | -4/Extension | Discovered exit to Cetus (range 6) 11698 | -4/Extension | Entered Cetus 11698 | -4/Cetus | Accompanied by 2 allies (A7) 11703 | -4/Cetus | Acquired a Cetus Manufacturing Module code from A7 11721 | -4/Cetus | Spotted Cetus Guard 11721 | -4/Cetus | Spotted Cetus Guard 11723 | -4/Cetus | Spotted Cetus Guard 11726 | -4/Cetus | Destroyed Cetus Guard 11728 | -4/Cetus | Allies destroyed Cetus Guard 11728 | -4/Cetus | Spotted Cetus Guard 11733 | -4/Cetus | Destroyed Cetus Guard 11733 | -4/Cetus | Destroyed Cetus Guard 11807 | -4/Cetus | Cetus Manufacturing Module disabled 11963 | -4/Cetus | Escorted A7 to Cetus Mainframe 12098 | -4/Cetus | Found a strange terminal 12138 | -4/Cetus | Identified exit to Archives 12138 | -4/Cetus | Discovered exit to Archives (range 15) 12184 | -4/Cetus | Entered Archives 12184 | -4/Archives | Accompanied by 2 allies (A7) 12189 | -4/Archives | Received a hacking code to weaken MAIN.C 12252 | -4/Archives | Unable to access archive contents 12262 | -4/Archives | Discovered exit to Research (range 13) 12303 | -4/Archives | Identified exit to Hub_04(d) 12303 | -4/Archives | Discovered exit to Hub_04(d) (range 14) 12351 | -4/Archives | Entered Hub_04(d) 12351 | -4/Hub_04(d) | Discovered exit to Research (range 10) 12375 | -4/Hub_04(d) | Entered Research 12375 | -3/Research | Evolved 2 slots: Propulsion x2 12376 | -3/Research | Loaded intel: 102 machine locations 12432 | -3/Research | Garrison activated, responded to threat 12517 | -3/Research | Build established: Scavenger-Tank 12632 | -3/Research | Garrison activated, responded to threat 13105 | -3/Research | Fabricated M-30 Cleanser? 13137 | -3/Research | P-80 Master assimilated allied Cleanser 8a 13916 | -3/Research | Spotted B-86 Titan 13921 | -3/Research | Befriended a Behemoth using the annoying Tinkerer's hack 13989 | -3/Research | Spotted B-86 Titan 13994 | -3/Research | Befriended a Behemoth using the annoying Tinkerer's hack 14046 | -3/Research | Fabricated Quantum Reactor (x2) 14114 | -3/Research | Fabricated Exp. Optical Array (x1) 14308 | -3/Research | Cargo convoy interrupted 14308 | -3/Research | Spotted Executioner 14338 | -3/Research | Destroyed Executioner 14344 | -3/Research | Garrison activated, responded to threat 14625 | -3/Research | First assault squad dispatched 14670 | -3/Research | Build established: Hacker-Gunner 14738 | -3/Research | System corruption reached 10% 15026 | -3/Research | Spotted B-90 Cyclops 15029 | -3/Research | Identified exit to Quarantine 15029 | -3/Research | Discovered exit to Quarantine (range 18) 15129 | -3/Research | Lost 6 parts (2n1u3w) 15136 | -3/Research | Destroyed B-90 Cyclops 15230 | -3/Research | Entered Quarantine 15273 | -3/Quarantine | Garrison activated, responded to threat 15458 | -3/Quarantine | Found Alien Artifact 15459 | -3/Quarantine | Identified Terrabomb 15459 | -3/Quarantine | Used Terrabomb 15620 | -3/Quarantine | Repaired Tri-rail Accelerator 15931 | -3/Quarantine | Identified exit to Research 15931 | -3/Quarantine | Discovered exit to Research (range 17) 15972 | -3/Quarantine | Found Alien Artifact 15973 | -3/Quarantine | Identified Hpw. Transdimensional Reconstructor 15973 | -3/Quarantine | Warped through subspace 16176 | -3/Quarantine | Scanned by Researcher 16197 | -3/Quarantine | Found Alien Artifact 16199 | -3/Quarantine | Identified Phase Armor 16230 | -3/Quarantine | First assault squad dispatched 16296 | -3/Quarantine | Destroyed 8 combat bots 16404 | -3/Quarantine | Met incapacitated Sigix Warrior 16404 | -3/Quarantine | Lockdown squad dispatched 16423 | -3/Quarantine | Acquired the access code to the Sigix quarantine chamber 16426 | -3/Quarantine | Unlocked Sigix quarantine chamber 16503 | -3/Quarantine | Spotted Lightning 16522 | -3/Quarantine | Destroyed Lightning 16535 | -3/Quarantine | Spotted Lightning 16540 | -3/Quarantine | Spotted Lightning 16568 | -3/Quarantine | Destroyed Lightning 16589 | -3/Quarantine | Destroyed Lightning 16744 | -3/Quarantine | System corruption reached 30% 16776 | -3/Quarantine | Entered Research 16776 | -2/Research | Evolved 2 slots: Propulsion x1, Utility x1 16941 | -2/Research | Identified exit to Access 16941 | -2/Research | Discovered exit to Access (range 10) 16956 | -2/Research | Entered Access 16956 | -1/Access | Evolved 2 slots: Utility x1, Weapon x1 17026 | -1/Access | Garrison activated, responded to threat 17220 | -1/Access | Build established: Scavenger-Tank 17507 | -1/Access | Destroyed 9 combat bots 17646 | -1/Access | Garrison activated, responded to threat 17677 | -1/Access | Destroyed 9 combat bots 17706 | -1/Access | First assault squad dispatched 18259 | -1/Access | System corruption reached 10% 18475 | -1/Access | Lost 7 parts (3n2u2w) 18531 | -1/Access | Lost 3 parts (1p2w) 18860 | -1/Access | Destroyed 7 combat bots 18937 | -1/Access | Core integrity fell below 50% 18961 | -1/Access | Destroyed 7 combat bots 18964 | -1/Access | Lost 7 parts (3n1u3w) 19044 | -1/Access | Self-destructed Last Messages --------------- 18959_ K-01 Serf collects debris. 18968_ R-10 Processor collects Imp. Antigrav System. 18976_ R-10 Processor collects Unknown Flight Unit. 18981_ R-10 Processor collects Hvy. Machine Gun. 18990_ R-10 Processor collects Med. Treads. 18994_ R-10 Processor collects Adv. Heat Sink. 18997_ R-10 Processor collects Railgun. 19000_ R-10 Processor collects Adv. Heat Sink. 19011_ Destroyed Com. Wheel. 19023_ Lgt. Quantum Reactor destroyed. 19026_ Gamma Rifle severed. 19026_ Q912-k follow-up attacks with Centrium Greatsword. 19031_ Q202-j follow-up attacks with Centrium Greatsword. 19033_ Adv. Heat Sink destroyed. 19039_ System corrupted: Wheel rejected. 19041_ Q202-j follow-up attacks with Centrium Greatsword. 19041_ Enh. Quantum Rifle destroyed. 19042_ R-10 Processor collects Gamma Rifle. 19043_ Adv. Heat Sink destroyed. 19043_ Q912-k follow-up attacks with Centrium Greatsword. Map ----- +----------------------------------------------------+ | ????????????????????????????# " + %% | | ????????????????????????????# """ # | | ?????????????????? ???????#????????##+########+# | | ???????????????? ????????????????# ??? | | ???????????????? ????????????????#? ?? | | ????????????????? ????????????????? ? "" | | ????????????????? ???????????????? "" | | ?????????????????? ???????????????? "" | | ?????????????????? ???????????????? Y" | | ??????????????????""" ########??????# "" | | ????????????"?????""" #??????# "" | | ????????????" """"" #??????# "" | | ???????????"" """"" #??????# | | ??????????""" """"" #??????# % | | ????????? #??????# ! | | ????????? #??????########?### | | ????????? ################### | | ?????????# ^ | | ?????????# | | ?????????# | | ?????????# | | ?????????# | | ?????????# %% | | ?????????# | | ?????????# ##########R##+################### | | ?????????# ??????# Q@ %R% #??????? " | | ???????????????????# ***Q #????????"" | | ???????????????????# *** #??????""" " | | ??????????????????## ** #???? " | | ??????????????????# % #??# | | ??????????????????## R #??# | | ???????????????????# #??# | | ???????????????????# """ """ #??# | | ???????????????????# """S""" #??########### | | ???????????????????##################????????????? | | ?????????????????????????????????????????????????? | | ?????????????????????????????????????????????????? | | ?????????????????????????????????????????????????? | | ?????????????????????????????????????????????????? | | ?????????????????????????????????????????????????? | | ?????????????????????????????????????????????????? | | ?????????????????????????????????????????????????? | | ?????????????????????????????????????????????????? | | ?????????????????????????????????????????????????? | | ?????????????????????????????????????????????????? | | ?????????????????????????????????????????????????? | | ?????????????????????????????????????????????????? | | ?????????????????????????????????????????????????? | | ?????????????????????????????????????????????????? | | ?????????????????????????????????????????????????? | +----------------------------------------------------+ Best States ------------- Heat Dissipation 110 Energy Generation 45 Energy Capacity 600 Matter Stores 750 Matter Capacity 750 Sight Range 23 Terrain Scan Density 10 EM Shielding 2 Armor Coverage 600 Resistance: KI 60 Resistance: TH 55 Resistance: EX 35 Resistance: EM 50 Resistance: I 35 Resistance: S 35 Resistance: P 35 Core Shielding 30 Power Shielding 90 Utility Shielding 66 Evasion (%) 55 Targeting Accuracy 8 Core Analysis 9 Recoil Reduction 7 Kinecelleration 30 Offensive Hacking 20 Item Schematics ----------------- Assault Drone Bay | -5/Zhirov | Free Exp. Heat Sink | -5/Zhirov | Free Exp. Optical Array | -5/Zhirov | Free Imp. Arc Thrower | -5/Zhirov | Free Adv. Plasma Rifle | -3/Quarantine | Archive Electron Diverter | -3/Quarantine | Archive Energy Mantle | -3/Quarantine | Archive Imp. Diametric Drive | -3/Quarantine | Archive Centrium Medium Armor Plating | -3/Quarantine | Archive Centrium Greatsword | -3/Quarantine | Archive Quantum Shading Machine | -3/Quarantine | Archive Gravity Neutralizer | -3/Quarantine | Archive Robot Schematics ------------------ C-55 Analyst | -3/Quarantine | Archive R-10 Processor | -3/Quarantine | Archive Fabricated ------------ Coolant Injector | x2 | -7/Factory | Preloaded Imp. Deuterium Engine | x2 | -7/Factory | Preloaded Kinecellerator | x1 | -7/Factory | Preloaded Imp. Arc Thrower | x1 | -4/Factory M-30 Cleanser | x1 | -3/Research | Preloaded Quantum Reactor | x2 | -3/Research | Preloaded Exp. Optical Array | x1 | -3/Research Alien Tech Used ----------------- Transdimensional Reconstructor Integrated Dissipator Terrabomb High-powered Transdimensional Reconstructor Phase Armor Achievements -------------- Turtlemind Challenges ------------ None Game ------ Seed ControlTractorLauncher Manual? 0 Play Time 01:58:40 Cumulative 79.4 hours Start 2023.12.06 @ 21:13:02 End 2023.12.07 @ 23:06:24 Sessions 3 Manual Loads 0 Difficulty Explorer Special Mode None Game No. 104 Rogue 4 Adventurer 1 Explorer 99 Win Type - Total 1 Types 0/0/1/0/0/0/0/0/0 Lore% 55 Gallery% 61 Achievement% 60 Wizard Run 0 Options --------- ASCII 0 Keyboard 0 Movement Mouse Keybinds 0 Fullscreen 2 Font 18/SmallcapsGlow Map View 76x50 Tactical HUD 1 Map Filters NONE Filters NONE Steam 1 RUN: d7928509-308e-4b5f-9d70-8d3dc0079559